[Event "*** Titled Tuesday Blitz"]
[Site "Chess.com"]
[Date "2019.05.07"]
[Round "3"]
[White "Divertissement"]
[Black "biostatistician"]
[Result "0-1"]
[WhiteElo "2667"]
[BlackElo "2525"]
[TimeControl "180+2"]
[EndTime "13:39:14 PDT"]
[Termination "biostatistician won by resignation"]

1. e4 {[%clk 0:03:01.9]} 1... e6 {[%clk 0:03:00.1]} 2. d4 {[%clk 0:03:02.3]}
2... d5 {[%clk 0:03:02]} 3. Nd2 {[%clk 0:03:02.5]} 3... Nc6 {[%clk 0:03:03.2]}
4. Ngf3 {[%clk 0:03:01.1]} 4... Nf6 {[%clk 0:03:04.3]} 5. e5 {[%clk 0:03:02.6]}
5... Ne4 {[%clk 0:03:04.3]} 6. Bd3 {[%clk 0:02:59.9]} 6... Nxd2 {[%clk
0:03:05.6]} 7. Bxd2 {[%clk 0:02:59.5]} 7... Nb4 {[%clk 0:03:07.5]} 8. Bb5+
{[%clk 0:02:53.6]} 8... Bd7 {[%clk 0:03:08.6]} 9. Be2 {[%clk 0:02:48.6]} 9... c5
{[%clk 0:03:09.9]} 10. c3 {[%clk 0:02:49.9]} 10... Nc6 {[%clk 0:03:10.8]} 11.
Be3 {[%clk 0:02:45]} 11... cxd4 {[%clk 0:03:10.1]} 12. cxd4 {[%clk 0:02:45.5]}
12... Bb4+ {[%clk 0:03:11.6]} 13. Kf1 {[%clk 0:02:46.4]} 13... O-O {[%clk
0:03:11.5]} 14. g3 {[%clk 0:02:45.2]} 14... f6 {[%clk 0:03:09.8]} 15. exf6
{[%clk 0:02:45.2]} 15... Qxf6 {[%clk 0:03:09.5]} 16. Kg2 {[%clk 0:02:44.7]}
16... Be8 {[%clk 0:03:00]} 17. Bg5 {[%clk 0:02:37.3]} 17... Qg6 {[%clk
0:02:52.2]} 18. a3 {[%clk 0:02:19.7]} 18... Bd6 {[%clk 0:02:50.5]} 19. Qd2
{[%clk 0:02:11.8]} 19... h6 {[%clk 0:02:32.1]} 20. Be3 {[%clk 0:02:11.8]} 20...
Qf6 {[%clk 0:02:29.9]} 21. b4 {[%clk 0:02:05.4]} 21... Bh5 {[%clk 0:02:29.7]}
22. Ng1 {[%clk 0:01:56.7]} 22... Bg6 {[%clk 0:02:21.2]} 23. b5 {[%clk
0:01:49.6]} 23... Ne7 {[%clk 0:02:20.6]} 24. Bd3 {[%clk 0:01:33.8]} 24... Rac8
{[%clk 0:02:17.5]} 25. Bxg6 {[%clk 0:01:28.4]} 25... Qxg6 {[%clk 0:02:16.3]} 26.
Rc1 {[%clk 0:01:20.1]} 26... Rxc1 {[%clk 0:02:12.4]} 27. Qxc1 {[%clk 0:01:20.2]}
27... Rc8 {[%clk 0:02:14]} 28. Qd1 {[%clk 0:01:11.6]} 28... Nf5 {[%clk
0:01:58.3]} 29. Nf3 {[%clk 0:00:25.5]} 29... Nxe3+ {[%clk 0:01:51.9]} 30. fxe3
{[%clk 0:00:26.4]} 30... Rc2+ {[%clk 0:01:53.5]} 31. Kh3 {[%clk 0:00:24.3]}
31... Qe4 {[%clk 0:01:11]} 32. Rf1 {[%clk 0:00:19.3]} 32... Ra2 {[%clk 0:00:51]}
33. Nh4 {[%clk 0:00:11.1]} 33... Be7 {[%clk 0:00:33.1]} 34. Qh5 {[%clk
0:00:08.7]} 34... Bxh4 {[%clk 0:00:33.4]} 35. Qf7+ {[%clk 0:00:09.5]} 35... Kh7
{[%clk 0:00:33.9]} 36. Rf3 {[%clk 0:00:09]} 36... Bg5 {[%clk 0:00:29.3]} 37. Qh5
{[%clk 0:00:08.3]} 37... Bxe3 {[%clk 0:00:27.4]} 38. Rf8 {[%clk 0:00:08.7]}
38... Qg2+ {[%clk 0:00:26.8]} 39. Kg4 {[%clk 0:00:10]} 39... Qe2+ {[%clk
0:00:27.9]} 40. Kh4 {[%clk 0:00:11.5]} 40... Qxh5+ {[%clk 0:00:29.1]} 41. Kxh5
{[%clk 0:00:12.9]} 41... Rxh2+ {[%clk 0:00:30]} 0-1

[Event "*** Titled Tuesday Blitz"]
[Site "Chess.com"]
[Date "2019.05.07"]
[Round "3"]
[White "Sebastian"]
[Black "MatthewG-p4p"]
[Result "0-1"]
[WhiteElo "2885"]
[BlackElo "2699"]
[TimeControl "180+2"]
[EndTime "13:39:16 PDT"]
[Termination "MatthewG-p4p won by resignation"]

1. e4 {[%clk 0:03:01.9]} 1... e6 {[%clk 0:02:59.6]} 2. d4 {[%clk 0:03:02.1]}
2... d5 {[%clk 0:03:00.4]} 3. Nc3 {[%clk 0:03:03.4]} 3... Bb4 {[%clk 0:03:01.4]}
4. e5 {[%clk 0:03:04.4]} 4... Ne7 {[%clk 0:03:01.9]} 5. a3 {[%clk 0:03:03]} 5...
Bxc3+ {[%clk 0:03:02.9]} 6. bxc3 {[%clk 0:03:04.6]} 6... c5 {[%clk 0:03:04.8]}
7. h4 {[%clk 0:03:02.6]} 7... Nbc6 {[%clk 0:03:01.2]} 8. h5 {[%clk 0:03:03.1]}
8... h6 {[%clk 0:03:02.6]} 9. Qe2 {[%clk 0:03:02.8]} 9... cxd4 {[%clk
0:02:58.1]} 10. Qg4 {[%clk 0:03:03]} 10... Qa5 {[%clk 0:02:35.2]} 11. Rh3 {[%clk
0:02:46.8]} 11... Nf5 {[%clk 0:02:33]} 12. Bf4 {[%clk 0:02:42]} 12... Bd7 {[%clk
0:02:30.8]} 13. Rb1 {[%clk 0:02:40]} 13... O-O-O {[%clk 0:02:05.1]} 14. Bd3
{[%clk 0:02:40.4]} 14... dxc3 {[%clk 0:01:52.3]} 15. Ne2 {[%clk 0:02:40.6]}
15... g5 {[%clk 0:01:35.4]} 16. hxg6 {[%clk 0:01:50.7]} 16... fxg6 {[%clk
0:01:37.3]} 17. Qxg6 {[%clk 0:01:52.2]} 17... Rhg8 {[%clk 0:01:38.5]} 18. Qh5
{[%clk 0:01:45.6]} 18... Rxg2 {[%clk 0:01:39]} 19. Kf1 {[%clk 0:01:46.6]} 19...
Rgg8 {[%clk 0:01:34]} 20. Bxf5 {[%clk 0:01:46.3]} 20... exf5 {[%clk 0:01:34.3]}
21. Rxc3 {[%clk 0:01:48]} 21... d4 {[%clk 0:01:31.1]} 22. Rcb3 {[%clk
0:01:43.3]} 22... b6 {[%clk 0:01:25.8]} 23. Qf3 {[%clk 0:01:41.5]} 23... Qc5
{[%clk 0:01:12.6]} 24. Rb5 {[%clk 0:01:39.2]} 24... Qc4 {[%clk 0:01:13.4]} 25.
R5b4 {[%clk 0:01:32.3]} 25... Qa6 {[%clk 0:00:40.1]} 26. Rxd4 {[%clk 0:01:32.5]}
26... Qb7 {[%clk 0:00:37.4]} 27. Rc4 {[%clk 0:01:33.6]} 27... Rg6 {[%clk
0:00:31.2]} 28. Nd4 {[%clk 0:01:33.5]} 28... Be8 {[%clk 0:00:29]} 29. Nxf5
{[%clk 0:01:18.9]} 29... Qa6 {[%clk 0:00:23.2]} 30. Qe2 {[%clk 0:01:09.1]} 30...
Kb7 {[%clk 0:00:18.1]} 31. Nd6+ {[%clk 0:01:03.8]} 31... Ka8 {[%clk 0:00:19.4]}
32. Bg3 {[%clk 0:00:58.2]} 32... Re6 {[%clk 0:00:20.6]} 33. Re4 {[%clk
0:00:53.6]} 33... Qxe2+ {[%clk 0:00:20.3]} 34. Rxe2 {[%clk 0:00:54.6]} 34... Nd4
{[%clk 0:00:21.6]} 35. Re4 {[%clk 0:00:49.7]} 35... Rdxd6 {[%clk 0:00:22.7]} 36.
Rd1 {[%clk 0:00:47.6]} 36... Bb5+ {[%clk 0:00:21.6]} 37. c4 {[%clk 0:00:45]}
37... Bxc4+ {[%clk 0:00:21.7]} 38. Kg2 {[%clk 0:00:46.7]} 38... Bd5 {[%clk
0:00:11.6]} 39. Rxd4 {[%clk 0:00:43.9]} 39... Bxe4+ {[%clk 0:00:12.9]} 40. Rxe4
{[%clk 0:00:45.8]} 40... Rd8 {[%clk 0:00:11.3]} 41. f4 {[%clk 0:00:44.2]} 41...
Rf8 {[%clk 0:00:12.8]} 42. Kf3 {[%clk 0:00:42.7]} 42... Kb7 {[%clk 0:00:14.3]}
43. Rd4 {[%clk 0:00:40]} 43... Rxe5 {[%clk 0:00:12.2]} 44. Rd6 {[%clk
0:00:38.5]} 44... Ra5 {[%clk 0:00:12.7]} 45. Re6 {[%clk 0:00:38.4]} 45... Rxa3+
{[%clk 0:00:13.9]} 0-1

[Event "*** Titled Tuesday Blitz"]
[Site "Chess.com"]
[Date "2019.05.07"]
[Round "3"]
[White "Alopekos"]
[Black "Casper_Schoppen"]
[Result "0-1"]
[WhiteElo "2568"]
[BlackElo "2588"]
[TimeControl "180+2"]
[EndTime "13:39:16 PDT"]
[Termination "Casper_Schoppen won by resignation"]

1. e4 {[%clk 0:03:01.9]} 1... c5 {[%clk 0:02:56.8]} 2. Nf3 {[%clk 0:03:03.1]}
2... Nc6 {[%clk 0:02:57.1]} 3. Nc3 {[%clk 0:03:03.4]} 3... e6 {[%clk 0:02:49.6]}
4. d4 {[%clk 0:03:04.5]} 4... cxd4 {[%clk 0:02:50.6]} 5. Nxd4 {[%clk 0:03:06.4]}
5... Qc7 {[%clk 0:02:50.3]} 6. Be3 {[%clk 0:03:07.2]} 6... a6 {[%clk 0:02:51.4]}
7. Be2 {[%clk 0:03:08.4]} 7... Nf6 {[%clk 0:02:50]} 8. O-O {[%clk 0:03:09.5]}
8... d6 {[%clk 0:02:43.6]} 9. f4 {[%clk 0:03:09.9]} 9... Be7 {[%clk 0:02:44.2]}
10. Kh1 {[%clk 0:03:10.5]} 10... O-O {[%clk 0:02:42.4]} 11. Qe1 {[%clk
0:03:11.7]} 11... Nxd4 {[%clk 0:02:36.8]} 12. Bxd4 {[%clk 0:03:11.5]} 12... b5
{[%clk 0:02:37.7]} 13. a3 {[%clk 0:03:12.8]} 13... Bb7 {[%clk 0:02:37.1]} 14.
Qg3 {[%clk 0:03:14]} 14... Rad8 {[%clk 0:02:34]} 15. Bd3 {[%clk 0:03:13.9]}
15... Rd7 {[%clk 0:02:29.2]} 16. Rae1 {[%clk 0:02:56]} 16... Re8 {[%clk
0:02:27.8]} 17. e5 {[%clk 0:02:55.2]} 17... dxe5 {[%clk 0:02:26.3]} 18. Bxe5
{[%clk 0:02:57.1]} 18... Qd8 {[%clk 0:01:58.4]} 19. f5 {[%clk 0:02:36.4]} 19...
exf5 {[%clk 0:01:46.4]} 20. Rxf5 {[%clk 0:02:09.2]} 20... Bd6 {[%clk 0:01:17.8]}
21. Rxf6 {[%clk 0:00:18.9]} 21... Bxe5 {[%clk 0:00:53.3]} 22. Rxe5 {[%clk
0:00:18.6]} 22... Rxe5 {[%clk 0:00:54.1]} 23. Qxe5 {[%clk 0:00:20.5]} 23... gxf6
{[%clk 0:00:55.1]} 24. Qf5 {[%clk 0:00:16.7]} 24... Kf8 {[%clk 0:00:41.7]} 25.
Qxh7 {[%clk 0:00:16.6]} 25... Ke7 {[%clk 0:00:34]} 26. h3 {[%clk 0:00:05.2]}
26... Qa8 {[%clk 0:00:29]} 27. Qg7 {[%clk 0:00:04.2]} 27... Rd8 {[%clk 0:00:21]}
28. Qg3 {[%clk 0:00:03.7]} 28... Rg8 {[%clk 0:00:19.4]} 29. Qe3+ {[%clk
0:00:04.1]} 29... Kf8 {[%clk 0:00:16.9]} 30. Ne4 {[%clk 0:00:05.3]} 30... Bxe4
{[%clk 0:00:13.5]} 31. Bxe4 {[%clk 0:00:06]} 31... Qc8 {[%clk 0:00:15.2]} 32.
Qh6+ {[%clk 0:00:04.7]} 32... Ke7 {[%clk 0:00:16.3]} 33. Qe3 {[%clk 0:00:04.6]}
33... Qe6 {[%clk 0:00:16.9]} 34. Qa7+ {[%clk 0:00:05.6]} 34... Kf8 {[%clk
0:00:17.9]} 35. Bf3 {[%clk 0:00:04.9]} 35... Kg7 {[%clk 0:00:18.5]} 36. c3
{[%clk 0:00:04.3]} 36... Rd8 {[%clk 0:00:19.6]} 37. Qf2 {[%clk 0:00:04.7]} 37...
Qe5 {[%clk 0:00:19.7]} 38. Bg4 {[%clk 0:00:03.4]} 38... f5 {[%clk 0:00:18.1]}
39. Bxf5 {[%clk 0:00:03.5]} 39... Rd1+ {[%clk 0:00:18.8]} 0-1

[Event "*** Titled Tuesday Blitz"]
[Site "Chess.com"]
[Date "2019.05.07"]
[Round "3"]
[White "Lagmantr"]
[Black "DrMelekess"]
[Result "1-0"]
[WhiteElo "2596"]
[BlackElo "2761"]
[TimeControl "180+2"]
[EndTime "13:39:23 PDT"]
[Termination "Lagmantr won by resignation"]

1. e4 {[%clk 0:02:55.6]} 1... d5 {[%clk 0:02:51.5]} 2. exd5 {[%clk 0:02:56.2]}
2... Qxd5 {[%clk 0:02:53.4]} 3. Nc3 {[%clk 0:02:57.7]} 3... Qd8 {[%clk
0:02:53.9]} 4. Nf3 {[%clk 0:02:58.8]} 4... Nf6 {[%clk 0:02:54.6]} 5. d4 {[%clk
0:02:59.8]} 5... Bg4 {[%clk 0:02:53.9]} 6. h3 {[%clk 0:03:00.7]} 6... Bxf3
{[%clk 0:02:54.7]} 7. Qxf3 {[%clk 0:03:02.6]} 7... c6 {[%clk 0:02:56.3]} 8. Bg5
{[%clk 0:02:46.2]} 8... Qxd4 {[%clk 0:02:54.3]} 9. Be2 {[%clk 0:02:40.3]} 9...
Nbd7 {[%clk 0:02:49.1]} 10. O-O {[%clk 0:02:40.1]} 10... e6 {[%clk 0:02:46.5]}
11. Rad1 {[%clk 0:02:37.9]} 11... Qb6 {[%clk 0:02:45.2]} 12. Ne4 {[%clk
0:02:27]} 12... Be7 {[%clk 0:02:18.8]} 13. Nd6+ {[%clk 0:02:23.6]} 13... Bxd6
{[%clk 0:02:19.3]} 14. Rxd6 {[%clk 0:02:25.5]} 14... O-O {[%clk 0:02:18.7]} 15.
Rfd1 {[%clk 0:02:25.3]} 15... Qc7 {[%clk 0:01:33.9]} 16. Qg3 {[%clk 0:01:54.2]}
16... Rfc8 {[%clk 0:00:57.7]} 17. Bh6 {[%clk 0:01:13.4]} 17... g6 {[%clk
0:00:54.9]} 18. Bf4 {[%clk 0:01:14.5]} 18... Nd5 {[%clk 0:00:40.6]} 19. R6xd5
{[%clk 0:01:09.5]} 19... Qxf4 {[%clk 0:00:32.6]} 20. Qxf4 {[%clk 0:01:04.3]}
20... cxd5 {[%clk 0:00:33.6]} 21. c4 {[%clk 0:01:04.8]} 21... Nb6 {[%clk
0:00:33.6]} 22. b3 {[%clk 0:01:04.5]} 22... Rab8 {[%clk 0:00:12.5]} 23. h4
{[%clk 0:00:50.3]} 23... h5 {[%clk 0:00:13.1]} 24. c5 {[%clk 0:00:37.8]} 24...
Nd7 {[%clk 0:00:13.4]} 25. b4 {[%clk 0:00:38.5]} 25... Nf8 {[%clk 0:00:09.2]}
26. Qg3 {[%clk 0:00:34.5]} 26... Rd8 {[%clk 0:00:06.1]} 27. Bxh5 {[%clk
0:00:34.3]} 27... Rbc8 {[%clk 0:00:04.3]} 28. Bf3 {[%clk 0:00:35.2]} 28... Rd7
{[%clk 0:00:04.8]} 29. h5 {[%clk 0:00:36.4]} 29... Kg7 {[%clk 0:00:06.2]} 30.
Qe5+ {[%clk 0:00:35.8]} 30... f6 {[%clk 0:00:06.4]} 31. h6+ {[%clk 0:00:27.5]}
31... Kf7 {[%clk 0:00:06.8]} 32. Qg3 {[%clk 0:00:25.7]} 32... Nh7 {[%clk
0:00:07.5]} 33. Re1 {[%clk 0:00:19.9]} 33... Re8 {[%clk 0:00:08.3]} 34. Bh5
{[%clk 0:00:19.7]} 34... Rg8 {[%clk 0:00:07.4]} 35. Bd1 {[%clk 0:00:18.2]} 35...
Re8 {[%clk 0:00:07.5]} 36. Ba4 {[%clk 0:00:19.3]} 1-0

[Event "*** Titled Tuesday Blitz"]
[Site "Chess.com"]
[Date "2019.05.07"]
[Round "3"]
[White "sergeikim"]
[Black "Thee-Chessboy"]
[Result "0-1"]
[WhiteElo "2473"]
[BlackElo "2365"]
[TimeControl "180+2"]
[EndTime "13:39:28 PDT"]
[Termination "Thee-Chessboy won by resignation"]

1. d4 {[%clk 0:03:01.9]} 1... Nf6 {[%clk 0:02:59.6]} 2. c4 {[%clk 0:03:02.6]}
2... g6 {[%clk 0:03:00.8]} 3. Nc3 {[%clk 0:03:03.6]} 3... Bg7 {[%clk 0:03:02.2]}
4. e4 {[%clk 0:03:04.5]} 4... d6 {[%clk 0:03:03.6]} 5. Nge2 {[%clk 0:03:05.6]}
5... O-O {[%clk 0:03:04.5]} 6. Ng3 {[%clk 0:03:05.9]} 6... e5 {[%clk 0:02:59.9]}
7. d5 {[%clk 0:03:06.3]} 7... a5 {[%clk 0:02:55.5]} 8. Be2 {[%clk 0:03:07]} 8...
h5 {[%clk 0:02:48.8]} 9. Bg5 {[%clk 0:03:06.6]} 9... Qe8 {[%clk 0:02:46.7]} 10.
Qd2 {[%clk 0:03:07]} 10... Nh7 {[%clk 0:02:34.2]} 11. Bh6 {[%clk 0:03:07.2]}
11... h4 {[%clk 0:02:29.5]} 12. Nf1 {[%clk 0:03:07.2]} 12... f5 {[%clk
0:02:27.5]} 13. Bxg7 {[%clk 0:03:06.6]} 13... Kxg7 {[%clk 0:02:28.3]} 14. h3
{[%clk 0:03:03.5]} 14... f4 {[%clk 0:02:22.4]} 15. Nh2 {[%clk 0:03:02.3]} 15...
g5 {[%clk 0:02:18.1]} 16. Bg4 {[%clk 0:03:00.8]} 16... Bxg4 {[%clk 0:02:15.2]}
17. Nxg4 {[%clk 0:03:00.5]} 17... Nf6 {[%clk 0:02:16.1]} 18. Nxf6 {[%clk
0:02:56.6]} 18... Rxf6 {[%clk 0:02:16.5]} 19. O-O-O {[%clk 0:02:48.4]} 19... Qg6
{[%clk 0:02:06.1]} 20. Nb5 {[%clk 0:02:42.1]} 20... Na6 {[%clk 0:01:53.3]} 21.
f3 {[%clk 0:02:32.1]} 21... b6 {[%clk 0:01:46.9]} 22. Kb1 {[%clk 0:02:27.5]}
22... Qf7 {[%clk 0:01:44.9]} 23. Qc2 {[%clk 0:02:23]} 23... Nc5 {[%clk
0:01:41.4]} 24. b3 {[%clk 0:02:22.4]} 24... Qd7 {[%clk 0:01:36.1]} 25. Rd2
{[%clk 0:02:19.5]} 25... Rff8 {[%clk 0:01:29.4]} 26. Kc1 {[%clk 0:02:17.7]}
26... Na6 {[%clk 0:01:29.9]} 27. Kd1 {[%clk 0:02:15.6]} 27... a4 {[%clk
0:01:30.9]} 28. Ke2 {[%clk 0:02:14.8]} 28... axb3 {[%clk 0:01:31.7]} 29. axb3
{[%clk 0:02:15.1]} 29... Nc5 {[%clk 0:01:26]} 30. b4 {[%clk 0:02:14.2]} 30...
Nb7 {[%clk 0:01:26.7]} 31. Qc3 {[%clk 0:02:10.8]} 31... Ra6 {[%clk 0:01:09.9]}
32. Ra1 {[%clk 0:02:07.6]} 32... Rfa8 {[%clk 0:01:10.8]} 33. Rdd1 {[%clk
0:02:01.4]} 33... Kf7 {[%clk 0:01:03.8]} 34. Rxa6 {[%clk 0:01:58.9]} 34... Rxa6
{[%clk 0:01:04.5]} 35. Ra1 {[%clk 0:02:00]} 35... Rxa1 {[%clk 0:01:05.2]} 36.
Qxa1 {[%clk 0:02:01.4]} 36... c6 {[%clk 0:01:06.4]} 37. dxc6 {[%clk 0:01:54.9]}
37... Qxc6 {[%clk 0:01:08.3]} 38. Kd3 {[%clk 0:01:55.7]} 38... d5 {[%clk
0:00:44.3]} 39. exd5 {[%clk 0:01:55.9]} 39... Qg6+ {[%clk 0:00:44.5]} 40. Kd2
{[%clk 0:01:49.9]} 40... e4 {[%clk 0:00:29.6]} 41. Qa7 {[%clk 0:01:46.1]} 41...
e3+ {[%clk 0:00:30.5]} 42. Kc3 {[%clk 0:01:46.5]} 42... Qf6+ {[%clk 0:00:28.9]}
43. Kd3 {[%clk 0:01:13.5]} 43... Qg6+ {[%clk 0:00:22.9]} 44. Kc3 {[%clk
0:01:14.2]} 44... Qf6+ {[%clk 0:00:24]} 45. Nd4 {[%clk 0:01:10.6]} 45... e2
{[%clk 0:00:20.7]} 46. Qa1 {[%clk 0:01:06.8]} 46... Qe5 {[%clk 0:00:20]} 47. Kd2
{[%clk 0:00:56.4]} 47... Qe3+ {[%clk 0:00:20.2]} 48. Kc2 {[%clk 0:00:49.1]}
48... e1=Q {[%clk 0:00:21.1]} 0-1

[Event "*** Titled Tuesday Blitz"]
[Site "Chess.com"]
[Date "2019.05.07"]
[Round "3"]
[White "MateusViageiro"]
[Black "NemtsevIgor"]
[Result "1-0"]
[WhiteElo "2176"]
[BlackElo "2271"]
[TimeControl "180+2"]
[EndTime "13:39:34 PDT"]
[Termination "MateusViageiro won on time"]

1. e4 {[%clk 0:03:01.9]} 1... c6 {[%clk 0:03:00.3]} 2. d4 {[%clk 0:03:01.8]}
2... d5 {[%clk 0:03:01.5]} 3. Nc3 {[%clk 0:03:02.7]} 3... h6 {[%clk 0:03:02.3]}
4. Nf3 {[%clk 0:03:02.5]} 4... Nf6 {[%clk 0:03:03]} 5. exd5 {[%clk 0:03:02.2]}
5... cxd5 {[%clk 0:03:03.2]} 6. Bd3 {[%clk 0:03:03]} 6... Nc6 {[%clk 0:03:02.6]}
7. h3 {[%clk 0:03:03.2]} 7... g6 {[%clk 0:03:03.1]} 8. O-O {[%clk 0:03:03.5]}
8... Bf5 {[%clk 0:03:04]} 9. Bxf5 {[%clk 0:03:01.2]} 9... gxf5 {[%clk 0:03:05]}
10. Re1 {[%clk 0:02:58.9]} 10... e6 {[%clk 0:03:06]} 11. Bf4 {[%clk 0:02:57.6]}
11... Ne4 {[%clk 0:03:05]} 12. Ne5 {[%clk 0:02:56.7]} 12... Bd6 {[%clk
0:03:01.6]} 13. Nb5 {[%clk 0:02:47.4]} 13... Bxe5 {[%clk 0:02:58.9]} 14. dxe5
{[%clk 0:02:47.8]} 14... Qb6 {[%clk 0:02:51.4]} 15. Nd6+ {[%clk 0:02:46.7]}
15... Ke7 {[%clk 0:02:25]} 16. Be3 {[%clk 0:02:42.9]} 16... d4 {[%clk
0:02:21.3]} 17. Nxe4 {[%clk 0:02:37.8]} 17... fxe4 {[%clk 0:02:16.7]} 18. Bf4
{[%clk 0:02:38.3]} 18... Rad8 {[%clk 0:01:48.9]} 19. Rxe4 {[%clk 0:02:30.7]}
19... Rd5 {[%clk 0:01:47.5]} 20. Bg3 {[%clk 0:02:30.4]} 20... Rg8 {[%clk
0:01:35.9]} 21. Bh4+ {[%clk 0:02:27.7]} 21... Ke8 {[%clk 0:01:33.9]} 22. Bf6
{[%clk 0:02:28]} 22... Qb5 {[%clk 0:01:24.2]} 23. Rg4 {[%clk 0:02:15.4]} 23...
Rxg4 {[%clk 0:01:15]} 24. Qxg4 {[%clk 0:02:15.1]} 24... Qc5 {[%clk 0:01:16.1]}
25. Re1 {[%clk 0:02:09.7]} 25... b5 {[%clk 0:00:58.9]} 26. Qg7 {[%clk
0:01:56.3]} 26... Qf8 {[%clk 0:00:58.7]} 27. Qg3 {[%clk 0:01:53.4]} 27... b4
{[%clk 0:00:55.7]} 28. Re4 {[%clk 0:01:53.6]} 28... a5 {[%clk 0:00:54.9]} 29.
Rg4 {[%clk 0:01:52.4]} 29... Kd7 {[%clk 0:00:56.2]} 30. Rg8 {[%clk 0:01:52.5]}
30... Qc5 {[%clk 0:00:57.3]} 31. Qg7 {[%clk 0:01:53]} 31... Kc7 {[%clk
0:00:58.5]} 32. Qxf7+ {[%clk 0:01:52.2]} 32... Kb6 {[%clk 0:00:59]} 33. Qxe6
{[%clk 0:01:50.3]} 33... d3 {[%clk 0:00:59.5]} 34. cxd3 {[%clk 0:01:38.3]} 34...
Rxd3 {[%clk 0:00:54.7]} 35. Rb8+ {[%clk 0:01:29.1]} 35... Ka7 {[%clk 0:00:54.4]}
36. Rg8 {[%clk 0:01:10.4]} 36... Rd1+ {[%clk 0:00:44.5]} 37. Kh2 {[%clk
0:01:11]} 37... Qxf2 {[%clk 0:00:45.3]} 38. Qxc6 {[%clk 0:01:02.9]} 38... Qg1+
{[%clk 0:00:46.4]} 39. Kg3 {[%clk 0:01:00.7]} 39... Rd3+ {[%clk 0:00:47.5]} 40.
Kg4 {[%clk 0:00:49.1]} 40... Qd1+ {[%clk 0:00:36.9]} 41. Kf5 {[%clk 0:00:43.1]}
41... Qh5+ {[%clk 0:00:25.2]} 42. Ke6 {[%clk 0:00:37.8]} 1-0

[Event "*** Titled Tuesday Blitz"]
[Site "Chess.com"]
[Date "2019.05.07"]
[Round "3"]
[White "hellokostya"]
[Black "MikaelyanArman"]
[Result "1-0"]
[WhiteElo "2541"]
[BlackElo "2697"]
[TimeControl "180+2"]
[EndTime "13:39:46 PDT"]
[Termination "hellokostya won on time"]

1. d4 {[%clk 0:03:01.9]} 1... Nf6 {[%clk 0:03:00.2]} 2. c4 {[%clk 0:03:02.7]}
2... g6 {[%clk 0:03:01.6]} 3. Nc3 {[%clk 0:03:02.5]} 3... Bg7 {[%clk 0:03:03.1]}
4. e4 {[%clk 0:03:03.4]} 4... O-O {[%clk 0:03:04.7]} 5. h3 {[%clk 0:03:04.6]}
5... d6 {[%clk 0:03:05.6]} 6. Be3 {[%clk 0:03:05.9]} 6... Nbd7 {[%clk 0:03:01]}
7. Bd3 {[%clk 0:02:35.7]} 7... c5 {[%clk 0:02:58.9]} 8. d5 {[%clk 0:02:36]} 8...
a6 {[%clk 0:02:59.9]} 9. a4 {[%clk 0:02:35.9]} 9... Rb8 {[%clk 0:02:50.5]} 10.
Nf3 {[%clk 0:02:36.4]} 10... Ne8 {[%clk 0:02:49.3]} 11. Qd2 {[%clk 0:02:28.8]}
11... Nc7 {[%clk 0:02:48.6]} 12. h4 {[%clk 0:02:20]} 12... b5 {[%clk 0:02:44.9]}
13. axb5 {[%clk 0:02:18.5]} 13... axb5 {[%clk 0:02:46.8]} 14. cxb5 {[%clk
0:02:19.3]} 14... e6 {[%clk 0:02:26.1]} 15. h5 {[%clk 0:02:14.8]} 15... exd5
{[%clk 0:02:15.1]} 16. exd5 {[%clk 0:02:13.4]} 16... Re8 {[%clk 0:02:11]} 17.
hxg6 {[%clk 0:02:12.7]} 17... fxg6 {[%clk 0:02:11.8]} 18. Kf1 {[%clk 0:02:01.9]}
18... Nf6 {[%clk 0:02:11.7]} 19. Bh6 {[%clk 0:01:56.9]} 19... Bh8 {[%clk
0:02:08.8]} 20. Ra7 {[%clk 0:01:47.8]} 20... Rb7 {[%clk 0:02:07.7]} 21. Rxb7
{[%clk 0:01:39.9]} 21... Bxb7 {[%clk 0:02:09.6]} 22. Ng5 {[%clk 0:01:38.8]}
22... Qe7 {[%clk 0:02:02.7]} 23. Bc4 {[%clk 0:01:21.7]} 23... Ng4 {[%clk
0:01:58.7]} 24. Ne6 {[%clk 0:01:11.6]} 24... Nxe6 {[%clk 0:01:33.8]} 25. dxe6
{[%clk 0:01:12.5]} 25... Bd4 {[%clk 0:01:34.4]} 26. Bg5 {[%clk 0:01:07.3]} 26...
Qg7 {[%clk 0:01:22.5]} 27. e7+ {[%clk 0:00:34.7]} 27... Kh8 {[%clk 0:01:23.4]}
28. Rh4 {[%clk 0:00:36.3]} 28... Ne5 {[%clk 0:01:11.5]} 29. Rxd4 {[%clk
0:00:30.4]} 29... cxd4 {[%clk 0:01:09.7]} 30. Qf4 {[%clk 0:00:31.1]} 30... Nd7
{[%clk 0:00:49.3]} 31. Nd5 {[%clk 0:00:24]} 31... d3 {[%clk 0:00:44.1]} 32. Nb6
{[%clk 0:00:15.8]} 32... d2 {[%clk 0:00:29.4]} 33. Bb3 {[%clk 0:00:15.7]} 33...
Qe5 {[%clk 0:00:19.5]} 34. Qxe5+ {[%clk 0:00:10.5]} 34... dxe5 {[%clk
0:00:20.6]} 35. Nxd7 {[%clk 0:00:08.9]} 35... h6 {[%clk 0:00:15.7]} 36. Bf6+
{[%clk 0:00:09.7]} 36... Kh7 {[%clk 0:00:17.1]} 37. Nxe5 {[%clk 0:00:10.7]}
37... Bd5 {[%clk 0:00:15.1]} 38. Bc2 {[%clk 0:00:10.1]} 38... Rc8 {[%clk
0:00:15.3]} 39. Bd1 {[%clk 0:00:08.2]} 39... Be4 {[%clk 0:00:03.5]} 40. Ke2
{[%clk 0:00:08.7]} 40... Bxg2 {[%clk 0:00:03.6]} 41. Nc6 {[%clk 0:00:08.6]}
41... h5 {[%clk 0:00:03.3]} 42. Nd8 {[%clk 0:00:09.5]} 1-0